Cogmind - Beta 15 @@@ ROGUE MODE // 2025.10.09 @ 17:27:38 Player: DietSnapple Result: Destroyed by G-47 Trooper with Particle Gun Performance ------------- Evolutions (2) 1000 Regions Visited (5) 1000 Robots Destroyed (61) 305 Value Destroyed (1286) 1286 Prototype IDs (23) 460 Alien Tech Used (0) 0 Bonus (322) 322 TOTAL SCORE: 4373 Bonus ------- High Alert Combat Kills 22 Aligned with FarCom 300 Cogmind --------- Core Integrity 0/550 Matter 165/300 Energy 72/100 System Corruption 1% Temperature Cool (9) Movement Core (400) Ox7 Location -8/Materials Parts ------- > --- POWER (1) -------- (None) > --- PROPULSION (2) --- (None) > --- UTILITY (4) ------ Large Storage Unit Backup Plating III > --- WEAPON (4) ------- (None) > --- INVENTORY (15) --- Medium Treads Medium Treads Large Battery (200) Large Battery (200) Compact Matter Pod (150) Compact Matter Pod (51) Advanced Weight Redist. System Hacking Suite Heavy Particle Cannon Heavy Particle Cannon Heavy Particle Cannon Heavy Particle Cannon Gauss Cannon Peak State ------------ > --- POWER ------------ Deuterium Engine > --- PROPULSION ------- Medium Treads Medium Treads > --- UTILITY ---------- Improved Heat Sink Improved Heat Sink Large Storage Unit Targeting Computer > --- WEAPON ----------- YOLO Cannon Gauss Cannon Gauss Cannon > --- INVENTORY -------- Deuterium Engine Medium Treads Medium Treads Large Battery Compact Matter Pod Compact Matter Pod Advanced Weight Redist. System Hacking Suite Heavy Particle Cannon Heavy Particle Cannon Heavy Particle Cannon Heavy Particle Cannon Gauss Cannon [Rating: 51] Favorites ----------- Power Ion Engine Engine Ion Engine Propulsion Light Treads Treads Light Treads Wheel Wheel Utility Large Storage Unit Device Heat Sink Storage Large Storage Unit Processor Targeting Computer Protection Light Armor Plating Weapon Gauss Cannon Energy Gun Medium Laser Energy Cannon Heavy Particle Cannon Ballistic Gun Light Assault Rifle Ballistic Cannon Gauss Cannon Launcher Grenade Launcher Build | -11 -10 -10 -10 -9 -8 ------- Run | Yrd Mat Min Exi Min Mat Slots Evolved 4 | . . . . . 4 Power . | . . . . . . Propulsion . | . . . . . . Utility 2 | . . . . . 2 Weapon 2 | . . . . . 2 Parts Attached 50 | 5 11 4 1 1 28 Power 7 | 2 1 1 . . 3 Engine 7 | 2 1 1 . . 3 Core . | . . . . . . Reactor . | . . . . . . Propulsion 8 | 2 2 1 . 1 2 Treads 4 | . 2 . . . 2 Leg . | . . . . . . Wheel 4 | 2 . 1 . 1 . Hover . | . . . . . . Flight . | . . . . . . Utility 20 | 1 3 1 1 . 14 Device 7 | . . . . . 7 Storage 8 | 1 2 . 1 . 4 Processor 2 | . . . . . 2 Hackware . | . . . . . . Protection 3 | . 1 1 . . 1 Artifact . | . . . . . . Weapon 15 | . 5 1 . . 9 Energy Gun 4 | . 4 . . . . Energy Cannon 5 | . . . . . 5 Ballistic Gun 1 | . . 1 . . . Ballistic Cannon 4 | . . . . . 4 Launcher 1 | . 1 . . . . Special Weapon . | . . . . . . Impact Weapon . | . . . . . . Slashing Weapon . | . . . . . . Piercing Weapon . | . . . . . . Special Melee Weapon . | . . . . . . Unidentified Prototypes . | . . . . . . Parts Lost 19 | . 3 6 . 1 9 Power 3 | . . 1 . . 2 Propulsion 5 | . . 2 . 1 2 Utility 4 | . . 1 . . 3 Weapon 7 | . 3 2 . . 2 Highest Loss Streak 9 | . 2 3 . 1 9 To Critical Strikes . | . . . . . . Average Backups 12 | 3 11 12 14 18 14 Power 1 | . 1 . . . . Propulsion 2 | 1 3 2 1 1 1 Utility 7 | . 5 7 10 15 7 Weapon 1 | . . 1 1 2 4 Tool/Special . | . . . . . . Unused Backups 13 | . 3 . 1 . 9 Power . | . . . . . . Propulsion 3 | . 1 . . . 2 Utility 9 | . 2 . 1 . 6 Weapon 1 | . . . . . 1 Tool/Special . | . . . . . . Average Slot Usage (%) 82 | . 82 80 78 70 90 Engine 12 | . 14 9 14 14 8 Treads 15 | . 27 6 . . 12 Wheel 9 | . . 19 28 27 5 Device 2 | . . . . . 12 Storage 14 | . 14 14 13 14 15 Processor 1 | . . . . . 6 Protection 5 | . 6 12 7 . . Energy Gun 8 | . 16 9 . . . Energy Cannon 3 | . . . . . 15 Ballistic Gun 4 | . . 8 14 14 . Ballistic Cannon 3 | . . . . . 13 Launcher 1 | . 2 . . . . Peak Build Rating 51 | 4 8 8 10 10 51 Average Rating 14 | 3 6 6 8 9 37 On Entrance 6 | . 4 8 7 10 10 Naked Turns . | . . . . . . Heaviest Build 206 | 10 32 31 206 206 78 Greatest Support 65 | 26 40 40 20 20 65 Greatest Overweight (x) 10 | . 1 2 10 10 7 Average Overweight (x) 1 | . . . 3 10 1 Largest Inventory Capacity 35 | 8 15 15 35 35 35 Average Capacity 17 | 6 14 15 23 35 16 Most Carried 20 | 5 15 14 20 20 20 Average Carried 13 | 3 11 12 15 19 14 Final Capacity 35 | 8 15 15 35 35 15 Final Carried 20 | 5 14 13 20 19 13 Class Distribution -------------------- 65% | Mutant 13% | Hauler-Mutant 13% | Skirmisher 5% | Gunner Dominant Class ---------------- Mutant | -10/Materials Mutant | -10/Mines Mutant | -10/Exiles Hauler-Mutant | -9/Mines Skirmisher | -8/Materials Resources | -11 -10 -10 -10 -9 -8 ----------- Run | Yrd Mat Min Exi Min Mat Matter Collected 993 | 172 203 101 50 20 447 Remotely . | . . . . . . Salvage Created 1428 | . 507 203 . 56 662 Parts 110 | . 34 13 . 7 56 Haulers Intercepted 3 | . 1 . . . 2 Recyclers Shooed . | . . . . . . Parts Field Recycled . | . . . . . . Retrieved Matter . | . . . . . . Parts Self-Destructed . | . . . . . . Prevented . | . . . . . . Kills | -11 -10 -10 -10 -9 -8 ------- Run | Yrd Mat Min Exi Min Mat Combat Hostiles Destroyed 38 | . 13 8 . 3 14 Guns 15 | . 4 8 . 3 . Cannons 7 | . . . . . 7 AOE 15 | . 9 . . . 6 Classes Destroyed 9 | . 7 . . . 2 Worker 8 | . 1 . . . 7 Builder 9 | . 1 . . . 8 Tunneler 1 | . 1 . . . . Hauler 3 | . 1 . . . 2 Recycler 1 | . . . . . 1 Operator 1 | . 1 . . . . Swarmer 15 | . 3 6 . 3 3 Grunt 22 | . 10 2 . . 10 Sentry 1 | . . . . . 1 Best Kill Streak 8 | . 5 3 . 3 8 Combat Bots Only 5 | . 5 3 . 3 5 Max Kills in Single Turn 4 | . 3 1 . 1 4 Gunslinging . | . . . . . . Exploded 3 | . 3 . . . 2 Melee . | . . . . . . Uniques/NPCs Destroyed . | . . . . . . Combat | -11 -10 -10 -10 -9 -8 -------- Run | Yrd Mat Min Exi Min Mat Hostile Shots Fired 336 | . 46 82 . 10 198 Missed 99 | . 9 22 . 2 66 Hits 237 | . 37 60 . 8 132 Projectile 237 | . 37 60 . 8 132 Critical Strikes 4 | . . 1 . . 3 Damage Taken 3241 | . 510 639 . 68 2024 Core 754 | . 45 137 . 8 564 Absorbed by Shields . | . . . . . . Core Remaining (%) 62 | 100 . . . 24 . Volleys Fired 119 | . 42 35 . 9 33 Largest 4 | . 2 2 . 1 4 Hottest 300 | . 80 90 . 20 300 Shots Fired 202 | . 56 51 . 9 86 Gun 112 | . 52 51 . 9 . Cannon 86 | . . . . . 86 Launcher 4 | . 4 . . . . Special . | . . . . . . Kinetic 85 | . . 16 . 9 60 Thermal 85 | . 24 35 . . 26 Explosive 4 | . 4 . . . . Electromagnetic 28 | . 28 . . . . Robot Hit Streak 8 | . 5 8 . 1 8 Robot Miss Streak 4 | . 4 3 . 3 4 Penetration Max 1 | . . . . . 1 Secondary Targets 2 | . . 2 . . . Max Gunslinging Chain 1 | . . 1 . . . Shots Hit Robots 78 | . 25 31 . 3 19 Core Hits 72 | . 28 12 . 3 29 Critical Kills 2 | . . . . 1 1 Critical Parts Destroyed . | . . . . . . Critical Strikes 8 | . 2 1 . 1 4 Burn 2 | . 1 1 . . . Meltdown 1 | . . . . . 1 Destroy 1 | . . . . 1 . Blast 3 | . . . . . 3 Corrupt 1 | . 1 . . . . Melee Attacks . | . . . . . . Impact . | . . . . . . Slashing . | . . . . . . Piercing . | . . . . . . Sneak Attacks . | . . . . . . Combat Hostiles . | . . . . . . Follow-up Attacks . | . . . . . . Damage Inflicted 4980 | . 1054 328 . 37 3561 Guns 698 | . 333 328 . 37 . Cannons 1569 | . . . . . 1569 Explosions 2698 | . 706 . . . 1992 Melee . | . . . . . . Ramming 15 | . 15 . . . . Kinetic 1005 | . . 78 . 37 890 Thermal 3310 | . 389 250 . . 2671 Explosive 439 | . 439 . . . . Electromagnetic 211 | . 211 . . . . Impact . | . . . . . . Slashing . | . . . . . . Piercing . | . . . . . . Highest Corruption 1 | . . . . . 1 Average Corruption 1 | . . . . . 1 Corruption Purged . | . . . . . . Corruption Blocked . | . . . . . . Effects 8 | . . . . . 8 Message Errors 2 | . . . . . 2 Matter Fused 2 | . . . . . 2 Energy Discharges 1 | . . . . . 1 Parts Rejected 2 | . . . . . 2 Data Loss (minor) 1 | . . . . . 1 Overload Shots . | . . . . . . Overflow Damage 532 | . 5 . . . 527 Projectiles 342 | . . . . . 342 Explosions 190 | . 5 . . . 185 Melee . | . . . . . . Knockbacks 3 | . . . . . 3 Impact . | . . . . . . Kinetic 3 | . . . . . 3 Secondary . | . . . . . . Self-Inflicted Damage 144 | . 102 . . . 42 Shots 4 | . 3 . . . 1 Rammed 2 | . 2 . . . . Targets Rammed 2 | . 2 . . . . Kicked . | . . . . . . Crushed . | . . . . . . Highest Temperature 484 | . 160 234 . . 484 Average Temperature 100 | . 51 103 . . 177 Received Heat Transfer 1272 | . 180 273 . . 819 Effects 4 | . . . . . 4 Interference 2 | . . . . . 2 Short Circuit 2 | . . . . . 2 Siege Activations . | . . . . . . Martial Activations . | . . . . . . Shielding Activations . | . . . . . . Robots Disrupted . | . . . . . . Combat Hostiles . | . . . . . . Robots Corrupted 1 | . 1 . . . . Combat Hostiles . | . . . . . . Parts Fried 1 | . 1 . . . . Impact Corruptions . | . . . . . . Robots Melted 1 | . . . . . 1 Combat Hostiles 1 | . . . . . 1 Parts Melted 7 | . 1 2 . . 4 Heat Transferred 3847 | . 744 743 . . 2360 Parts Sabotaged . | . . . . . . Parts Stolen . | . . . . . . Parts Stripped . | . . . . . . Power Chain Reactions 4 | . 4 . . . . Alert | -11 -10 -10 -10 -9 -8 ------- Run | Yrd Mat Min Exi Min Mat Maximum Alert Level 2 | . . . . . 2 Low Security (%) 93 | 100 100 100 . 100 74 Level 1 3 | . . . . . 12 Level 2 3 | . . . . . 12 Level 3 . | . . . . . . Level 4 . | . . . . . . Level 5 . | . . . . . . High Security . | . . . . . . Max Security . | . . . . . . Peak Influence 499 | . 163 80 . 60 499 Initial . | . . . . . . Average 62 | . 57 24 . 14 115 Influence Increases 1356 | . 397 190 . 70 699 Destroy 0b10 Robot/C 760 | . 260 160 . 60 280 Destroy 0b10 Robot/NC 115 | . 25 . . . 90 Destroy Leader 136 | . 52 30 . 10 44 Disable Machine 120 | . 15 . . . 105 Destroy Structure 210 | . 30 . . . 180 Lose Combat Pursuer 15 | . 15 . . . . Influence Decreases 925 | . 397 190 . 70 268 Time Decay 745 | . 367 140 . 60 178 Lost Part 180 | . 30 50 . 10 90 Squads Dispatched 5 | . 2 . . . 3 Investigation 1 | . 1 . . . . Extermination . | . . . . . . Reinforcement 4 | . 1 . . . 3 Assault . | . . . . . . Garrison . | . . . . . . Intercept . | . . . . . . Searches Triggered . | . . . . . . Construction Impeded 1 | . . . . . 1 Haulers Reinforced . | . . . . . . Active Scanning Responses . | . . . . . . Cargo Convoy Interrupts . | . . . . . . Stealth | -11 -10 -10 -10 -9 -8 --------- Run | Yrd Mat Min Exi Min Mat Distress Signals 4 | . 1 . . . 3 Communications Jammed . | . . . . . . Distress Signals . | . . . . . . Times Spotted 59 | . 24 8 . 2 25 Peak Tracking Total 8 | . 7 3 . 2 8 Tactical Retreats 1 | . 1 . . . . Traps | -11 -10 -10 -10 -9 -8 ------- Run | Yrd Mat Min Exi Min Mat Traps Triggered 3 | . 2 . . . 1 Indirectly . | . . . . . . Trap Hack Attempts . | . . . . . . Triggered . | . . . . . . Disarmed . | . . . . . . Reprogrammed . | . . . . . . Reused . | . . . . . . Traps Extracted . | . . . . . . Installed . | . . . . . . Triggered . | . . . . . . Machines | -11 -10 -10 -10 -9 -8 ---------- Run | Yrd Mat Min Exi Min Mat Machines Disabled 8 | . 1 . . . 7 Max in Single Turn 3 | . 1 . . . 3 Machines Repaired . | . . . . . . Machines Dismantled . | . . . . . . Machines Sabotaged . | . . . . . . Overloaded Fab Kills . | . . . . . . Hacking | -11 -10 -10 -10 -9 -8 --------- Run | Yrd Mat Min Exi Min Mat Machines Accessed 3 | . 1 . 1 . 1 Terminals . | . . . . . . Fabricators . | . . . . . . Repair Stations . | . . . . . . Recycling Units 2 | . 1 . . . 1 Scanalyzers . | . . . . . . Garrison Access . | . . . . . . Total Hacks 7 | . 2 . 1 . 4 Successful 4 | . 2 . 1 . 1 Failed 3 | . . . . . 3 Catastrophic . | . . . . . . Database Lockouts . | . . . . . . Manual 1 | . . . 1 . . Terminals . | . . . . . . Fabricators . | . . . . . . Repair Stations . | . . . . . . Recycling Units 6 | . 2 . . . 4 Scanalyzers . | . . . . . . Garrison Access . | . . . . . . Terminal Hacks 1 | . . . 1 . . Proto ID Catalog 1 | . . . 1 . . Fabricator Hacks . | . . . . . . Repair Station Hacks . | . . . . . . Recycling Unit Hacks 3 | . 2 . . . 1 Report Inventory 2 | . 1 . . . 1 Retrieve Components 1 | . 1 . . . . Scanalyzer . | . . . . . . Garrison Access Hacks . | . . . . . . Unauthorized Hacks . | . . . . . . Terminals . | . . . . . . Fabricators . | . . . . . . Repair Stations . | . . . . . . Recycling Units . | . . . . . . Scanalyzers . | . . . . . . Garrison Access . | . . . . . . Data Cores Recovered . | . . . . . . Used . | . . . . . . Hacking Detections 2 | . 1 . . . 1 Full Trace Events 1 | . . . . . 1 Feedback Events . | . . . . . . Feedback Blocked . | . . . . . . Robot Schematics Acquired . | . . . . . . Robots Built . | . . . . . . Authchips . | . . . . . . Time . | . . . . . . Total Robot Build Rating . | . . . . . . Part Schematics Acquired . | . . . . . . Parts Built . | . . . . . . Authchips . | . . . . . . Time . | . . . . . . Total Part Build Rating . | . . . . . . Parts Repaired . | . . . . . . Time . | . . . . . . Parts Recycled . | . . . . . . Recycled Matter . | . . . . . . Retrieved Matter . | . . . . . . Retrieved Components 3 | . 3 . . . . Parts Scanalyzed . | . . . . . . Part Schematics Acquired . | . . . . . . Parts Damaged . | . . . . . . Bothacking | -11 -10 -10 -10 -9 -8 ------------ Run | Yrd Mat Min Exi Min Mat Used RIF Installer . | . . . . . . Robots Hacked . | . . . . . . Non-combat . | . . . . . . Combat . | . . . . . . Robot Hacks Applied . | . . . . . . Relay Couplers Released . | . . . . . . Fabnet Peak Effective % . | . . . . . . Robots Rewired . | . . . . . . Allies Hacked . | . . . . . . Hacks Repelled . | . . . . . . Allies | -11 -10 -10 -10 -9 -8 -------- Run | Yrd Mat Min Exi Min Mat Total Allies . | . . . . . . Largest Group . | . . . . . . Highest-Rated Group . | . . . . . . Highest-Rated Ally . | . . . . . . Total Orders . | . . . . . . Ally Attacks . | . . . . . . Total Damage . | . . . . . . Kills . | . . . . . . Allies Corrupted . | . . . . . . Allies Melted . | . . . . . . Intel | -11 -10 -10 -10 -9 -8 ------- Run | Yrd Mat Min Exi Min Mat Active Infowar (turns) 2 | . . . . . 2 Sensors 2 | . . . . . 2 Robot Analysis Total . | . . . . . . Derelict Logs Recovered 1 | . . . . 1 . Drone Launches . | . . . . . . Drone Recoveries . | . . . . . . Exploration | -11 -10 -10 -10 -9 -8 ------------- Run | Yrd Mat Min Exi Min Mat Turns Passed 3418 | 84 1466 389 439 273 767 Spaces Moved 1965 | 82 830 288 334 112 319 Core 7 | 3 . . . . 4 Treads 1011 | . 811 34 . . 166 Legs . | . . . . . . Wheels 947 | 79 19 254 334 112 149 Hover . | . . . . . . Flight . | . . . . . . Fastest Speed 50 | 50 90 90 80 230 110 Average Speed 147 | 88 158 102 125 230 169 Slowest Speed 400 | 100 160 160 230 230 400 Overloaded Moves . | . . . . . . Propulsion Burnouts . | . . . . . . Robots Hopped . | . . . . . . Potential Cave-ins . | . . . . . . Cave-ins Triggered . | . . . . . . Exploration Rate (%) 47 | 5 95 53 64 36 33 Regions Visited 5 Branch Regions 3 Pre-discovered Areas 1 | . . . . 1 . Known Exits Taken . | . . . . . . Unknown Exits Taken 5 | 1 1 1 1 1 . Scrap Searched . | . . . . . . Spaces Dug 10 | . . . . . 10 Terrain Destroyed 278 | . 35 . . . 243 Melee . | . . . . . . Projectile 39 | . . . . . 39 AOE 239 | . 35 . . . 204 Terrain Rammed . | . . . . . . Walls Destroyed . | . . . . . . Machines Disabled . | . . . . . . Actions | -11 -10 -10 -10 -9 -8 --------- Run | Yrd Mat Min Exi Min Mat Total 2259 | 90 925 332 355 121 436 Wait 26 | . 15 1 . . 10 Move 1960 | 81 829 287 333 111 319 Hop . | . . . . . . Pick Up 55 | 4 16 3 16 . 16 Fast Attach 14 | 4 4 1 1 . 4 Attach 22 | . 5 4 . 1 12 Detach 10 | . 3 . . . 7 Swap 21 | 1 2 1 . . 17 Drop 27 | . 7 . 2 . 18 Fire 119 | . 42 35 . 9 33 Melee . | . . . . . . Ram . | . . . . . . Kick . | . . . . . . Crush 2 | . 2 . . . . Escape Stasis . | . . . . . . Rewire 3 | . . . 3 . . Trap . | . . . . . . Miscellaneous . | . . . . . . Route ------- -11/Scrapyard -10/Materials (discovered 4 exits: [*Mat x3] / [*Min]) -10/Mines -10/Exiles (discovered 2 exits: [*Min x2]) -9/Mines -8/Materials History --------- Turn | Location | Event 16 | -11/Scrapyard | Discovered new exit (range 16) 85 | -11/Scrapyard | Entered Materials 301 | -10/Materials | Build established: Mutant 527 | -10/Materials | Discovered new exit (range 12) 904 | -10/Materials | Discovered new exit (range 3) 1413 | -10/Materials | Discovered new exit (range 8) 1505 | -10/Materials | Discovered new exit (range 15) 1551 | -10/Materials | Entered Mines 1678 | -10/Mines | Core integrity fell below 50% 1717 | -10/Mines | Lost 3 parts (1u2w) 1933 | -10/Mines | Deemed a non-threat by the Exiles lab entrance 1934 | -10/Mines | Discovered new exit (range 5) 1940 | -10/Mines | Entered Exiles 1955 | -10/Exiles | Discovered new exit (range 15) 1967 | -10/Exiles | Met 8R-AWN 1982 | -10/Exiles | Met EX-HEX 2019 | -10/Exiles | Met EX-BIN 2034 | -10/Exiles | Aligned with FarCom system 2035 | -10/Exiles | Given EX-Vault access code 2063 | -10/Exiles | Opened EX-Vault 2075 | -10/Exiles | Found YOLO Cannon 2096 | -10/Exiles | Warned to stay clear of 0b10 Research branches 2125 | -10/Exiles | Met EX-DEC 2354 | -10/Exiles | Discovered new exit (range 12) 2379 | -10/Exiles | Left Exiles lab with YOLO Cannon 2379 | -10/Exiles | Entered Mines 2474 | -9/Mines | Build established: Hauler-Mutant 2604 | -9/Mines | Learned location of Zion (-7) 2613 | -9/Mines | Discovered new exit (range 12) 2652 | -9/Mines | Entered Materials 2652 | -8/Materials | Evolved 4 slots: Utility x2, Weapon x2 3358 | -8/Materials | Build established: Skirmisher 3397 | -8/Materials | Core integrity fell below 50% 3412 | -8/Materials | Core integrity fell below 20% 3419 | -8/Materials | Destroyed by G-47 Trooper with Particle Gun Last Messages --------------- 03397_ U-05 Engineer builds a Wall. 03397_ Deuterium Engine destroyed. 03398_ U-05 Engineer lays Concrete. 03400_ The unstable cave ceiling collapses. 03400_ 7 Matter crushed. 03400_ U-05 Engineer destroyed. 03401_ U-05 Engineer builds a Wall. 03401_ K-01 Serf collects debris. 03403_ YOLO Cannon destroyed. 03406_ U-05 Engineer lays Concrete. 03406_ K-01 Serf collects debris. 03407_ Imp. Heat Sink destroyed. 03407_ U-05 Engineer lays Concrete. 03410_ U-05 Engineer builds a Wall. 03413_ Critical hit (Burn: +37). 03415_ U-05 Engineer lays Concrete. 03415_ Acquired Backup Plating III. 03416_ System corrupted: Energy discharge (-22). 03416_ U-05 Engineer lays Concrete. 03417_ U-05 Engineer builds a Wall. Map ----- +----------------------------------------------------+ | ??????????????????????????????????????????????# | | ??????????????? ?????????????????????????????# | | ?????????????"" ?????????????????????????????# | | ???????????+ ""???????????????????????????# | | ???????????# ""???????????????????????????#### | | ??????#??### [ ????????????????????????????### | | ??????# ## " ????????????????????????????# | | ????? ""##??#####????????????????????# " | | ?????? #######"##?# ########?????????????# " | | ????? # #?# # #?????????????# " | | ?????? # #?# # #?????????????#!= | | ?????? " #?# # """ #?????????????#[! | | ?????? # ### # """ #?????????????#! | | ????? / # ## # """ #?????????# ?### | | ????? == % = # " # % #????????## ### | | ?????" == ##+## ##+####/#########+## | | ????????# *# % % w | | ?????????# # gg """ | | ?????????# # """ | | ?????????## # % "#######+############ """ | | ??????????### ####### ## """ # "%" | | ?????????###; ;;;;## ## "T" # % | | ?????????#";; g * # ## # | | ??????? ;* ==% # ##[ ]# | | ???????" ! # ####+### "" | | ???????" ; @ # + Y" | | ???????" ; |!Y ! ###########+## "" | | ???????? ; =%# Y *=;#????# # | | ????????####" # ;#????# * ! + | | ???????????#" # ###????# ! ## ! # | | ???????????#" ?????#** ## !!!! # | | ??????????# " # ????# ! ## =|[[# | | ??????????# ; # ???# ## =![[# | | ??????????# % ## ; ;; ??################ | | ?????????? ;= #?????????????????? | | ?????????? ; #?????????????????? | | ???????????? [ ! ; ##?????????????????? | | ?????????????? !/ ###??????????????????? | | ????????????????? "" ! #????????????????????? | | ???????????????????? ?" #????????????????????? | | ??????????????????????? ?????????????????????? | | ?????????????????????????????????????????????????? | | ?????????????????????????????????????????????????? | | ?????????????????????????????????????????????????? | | ?????????????????????????????????????????????????? | | ?????????????????????????????????????????????????? | | ?????????????????????????????????????????????????? | | ?????????????????????????????????????????????????? | | ?????????????????????????????????????????????????? | | ?????????????????????????????????????????????????? | +----------------------------------------------------+ Best States ------------- Heat Dissipation 59 Energy Generation 14 Energy Capacity 475 Matter Stores 390 Matter Capacity 450 Sight Range 16 Terrain Scan Density 10 Additional Mass Support 9 Armor Coverage 150 Evasion (%) 42 Targeting Accuracy 5 Recoil Reduction 6 Authchip Count 1 Item Schematics ----------------- None Robot Schematics ------------------ None Fabricated ------------ Nothing Repaired ---------- Nothing Alien Tech Used ----------------- None Achievements -------------- None Challenges ------------ None Game ------ Seed BoltHeatLegs Manual? 0 Play Time 00:24:17 Cumulative 28.2 hours Start 2025.10.09 @ 17:03:27 End 2025.10.09 @ 17:27:38 Sessions 1 Manual Loads 0 Difficulty Rogue Special Mode None Game No. 74 Rogue 67 Adventurer 7 Explorer 0 Win Type - Total 0 Types 0/0/0/0/0/0/0/0/0/0 Lore% 5 Gallery% 26 Achievement% 26 Wizard Run 0 Options --------- Layout 0 ASCII 0 Keyboard 1 Movement Vi Keybinds 0 Fullscreen 1 Font 18/SmallcapsGlow Map View 112x50 Zoom Use 0% Tactical HUD 1 Map Filters NONE Filters NONE Steam X RUN: 0f644485-3b6e-463e-93bd-ecf641d57b77